{"text_format":"3","workbook":"xlsx","n_sheets":2,"sheets":["EPOL","Sheet2"],"not_rendered":{"images":1,"external_links":1,"defined_names":1},"read":"whole","date_system":"1900"}

{"sheet":"EPOL","index":0,"n_rows":28,"n_cols":4,"rows_kept":28}
["包名","状态","所属sig组","联系人邮箱"]
["activemq","unresolvable",{"$f":"VLOOKUP(A2,[1]软件包责任田!$A:$B,2,0)","v":"Application"},"wangyiru1@huawei.com"]
["avro","unresolvable",{"$f":"VLOOKUP(A3,[1]软件包责任田!$A:$B,2,0)","v":"Application"},"wangyiru1@huawei.com"]
["canal","unresolvable",{"$f":"VLOOKUP(A4,[1]软件包责任田!$A:$B,2,0)","v":"DB"},"zhaobo6@huawei.com"]
["neo4j","unresolvable",{"$f":"VLOOKUP(A5,[1]软件包责任田!$A:$B,2,0)","v":"DB"},"zhaobo6@huawei.com"]
["fish","failed",{"$f":"VLOOKUP(A6,[1]软件包责任田!$A:$B,2,0)","v":"Desktop"},"chenyaqiang@huawei.com"]
["you-get","unresolvable",{"$f":"VLOOKUP(A7,[1]软件包责任田!$A:$B,2,0)","v":"Desktop"},"chenyaqiang@huawei.com"]
["log4cpp","failed",{"$f":"VLOOKUP(A8,[1]软件包责任田!$A:$B,2,0)","v":"dev-utils"},"wangyiru1@huawei.com"]
["java-client-kubevirt","unresolvable",{"$f":"VLOOKUP(A9,[1]软件包责任田!$A:$B,2,0)","v":"oVirt"},"yangzhao1@kylinos.cn"]
["otopi","unresolvable",{"$f":"VLOOKUP(A10,[1]软件包责任田!$A:$B,2,0)","v":"oVirt"},"yangzhao1@kylinos.cn"]
["ovirt-engine-extension-aaa-jdbc","unresolvable",{"$f":"VLOOKUP(A11,[1]软件包责任田!$A:$B,2,0)","v":"oVirt"},"yangzhao1@kylinos.cn"]
["ovirt-engine-extensions-api","unresolvable",{"$f":"VLOOKUP(A12,[1]软件包责任田!$A:$B,2,0)","v":"oVirt"},"yangzhao1@kylinos.cn"]
["ovirt-jboss-modules-maven-plugin","unresolvable",{"$f":"VLOOKUP(A13,[1]软件包责任田!$A:$B,2,0)","v":"oVirt"},"yangzhao1@kylinos.cn"]
["snmp4j","unresolvable",{"$f":"VLOOKUP(A14,[1]软件包责任田!$A:$B,2,0)","v":"oVirt"},"yangzhao1@kylinos.cn"]
["vdsm-jsonrpc-java","unresolvable",{"$f":"VLOOKUP(A15,[1]软件包责任田!$A:$B,2,0)","v":"oVirt"},"yangzhao1@kylinos.cn"]
["accumulo","unresolvable",{"$f":"VLOOKUP(A16,[1]软件包责任田!$A:$B,2,0)","v":"sig-ai-bigdata"},"chenyaqiang@huawei.com"]
["flume","unresolvable",{"$f":"VLOOKUP(A17,[1]软件包责任田!$A:$B,2,0)","v":"sig-ai-bigdata"},"chenyaqiang@huawei.com"]
["hbase","unresolvable",{"$f":"VLOOKUP(A18,[1]软件包责任田!$A:$B,2,0)","v":"sig-ai-bigdata"},"chenyaqiang@huawei.com"]
["oozie","unresolvable",{"$f":"VLOOKUP(A19,[1]软件包责任田!$A:$B,2,0)","v":"sig-ai-bigdata"},"chenyaqiang@huawei.com"]
["parquet-format","unresolvable",{"$f":"VLOOKUP(A20,[1]软件包责任田!$A:$B,2,0)","v":"sig-ai-bigdata"},"chenyaqiang@huawei.com"]
["python-boto","unresolvable",{"$f":"VLOOKUP(A21,[1]软件包责任田!$A:$B,2,0)","v":"sig-python-modules"},"wangyiru1@huawei.com"]
["python-lexicon","unresolvable",{"$f":"VLOOKUP(A22,[1]软件包责任田!$A:$B,2,0)","v":"sig-python-modules"},"wangyiru1@huawei.com"]
["python-pytest-relaxed","failed",{"$f":"VLOOKUP(A23,[1]软件包责任田!$A:$B,2,0)","v":"sig-python-modules"},"wangyiru1@huawei.com"]
["python-setproctitle","unresolvable",{"$f":"VLOOKUP(A24,[1]软件包责任田!$A:$B,2,0)","v":"sig-python-modules"},"wangyiru1@huawei.com"]
["python-sphinx-feature-classification","unresolvable",{"$f":"VLOOKUP(A25,[1]软件包责任田!$A:$B,2,0)","v":"sig-python-modules"},"wangyiru1@huawei.com"]
["kylin-music","unresolvable",{"$f":"VLOOKUP(A26,[1]软件包责任田!$A:$B,2,0)","v":"sig-UKUI"},"yangzhao1@kylinos.cn"]
["kylin-recorder","unresolvable",{"$f":"VLOOKUP(A27,[1]软件包责任田!$A:$B,2,0)","v":"sig-UKUI"},"yangzhao1@kylinos.cn"]
["libglademm24","failed",{"$f":"VLOOKUP(A28,[1]软件包责任田!$A:$B,2,0)","v":"xfce"}]

{"sheet":"Sheet2","index":1,"n_rows":0,"n_cols":0,"rows_kept":0}